Cogmind - Beta 14 @@@ ROGUE MODE // 2024.09.11 @ 11:27:21 Player: Dull Result: Destroyed by as-23269 with Assembled Blade Performance ------------- Evolutions (0) 0 Regions Visited (4) 800 Robots Destroyed (14) 70 Value Destroyed (371) 371 Prototype IDs (2) 40 Alien Tech Used (0) 0 Bonus (300) 300 TOTAL SCORE: 1581 Bonus ------- Aligned with FarCom 300 Cogmind --------- Core Integrity 0/250 Matter 192/300 Energy 250/250 System Corruption 0% Temperature Cool (0) Movement Rolling (200) Ox8 Location -9/Mines Parts ------- > --- POWER (1) -------- Ion Engine > --- PROPULSION (2) --- Light Treads Wheel > --- UTILITY (2) ------ Huge Storage Unit Reflective Plating > --- WEAPON (2) ------- Small Laser > --- INVENTORY (25) --- Ion Engine Ion Engine Aluminum Leg Aluminum Leg Aluminum Leg Aluminum Leg Titanium Leg Heat Sink Improved Heat Sink Compact Matter Pod (150) Improved Terrain Scanner Seismic Detector Reaction Control System Power Shielding Improved Light Armor Plating Army-in-a-Box Light Assault Rifle Heavy Mace Scythe Peak State ------------ > --- POWER ------------ Ion Engine > --- PROPULSION ------- Light Treads Light Treads > --- UTILITY ---------- Huge Storage Unit Reflective Plating > --- WEAPON ----------- Small Laser Light Assault Rifle > --- INVENTORY -------- Ion Engine Ion Engine Aluminum Leg Aluminum Leg Aluminum Leg Aluminum Leg Titanium Leg Wheel Heat Sink Improved Heat Sink Compact Matter Pod Improved Terrain Scanner Seismic Detector Reaction Control System Power Shielding Improved Light Armor Plating Army-in-a-Box Grenade Launcher Heavy Mace Scythe [Rating: 17] Favorites ----------- Power Ion Engine Engine Ion Engine Propulsion Light Treads Treads Light Treads Leg Aluminum Leg Wheel Wheel Utility Huge Storage Unit Device Seismic Detector Storage Huge Storage Unit Processor 0b10 Alert Chip Protection Reflective Plating Weapon Small Laser Energy Gun Small Laser Ballistic Gun Light Assault Rifle Launcher Grenade Launcher Build | -11 -10 -10 -10 -9 ------- Run | Yrd Mat Min Exi Min Slots Evolved . | . . . . . Power . | . . . . . Propulsion . | . . . . . Utility . | . . . . . Weapon . | . . . . . Parts Attached 20 | 4 2 7 5 2 Power 1 | . . 1 . . Engine 1 | . . 1 . . Core . | . . . . . Reactor . | . . . . . Propulsion 4 | 2 . . 1 1 Treads 3 | 2 . . 1 . Leg . | . . . . . Wheel 1 | . . . . 1 Hover . | . . . . . Flight . | . . . . . Utility 10 | 2 1 3 4 . Device 5 | 2 . 2 1 . Storage 1 | . 1 . . . Processor 1 | . . . 1 . Hackware . | . . . . . Protection 3 | . . 1 2 . Artifact . | . . . . . Weapon 5 | . 1 3 . 1 Energy Gun 2 | . 1 1 . . Energy Cannon . | . . . . . Ballistic Gun 1 | . . 1 . . Ballistic Cannon . | . . . . . Launcher 2 | . . 1 . 1 Special Weapon . | . . . . . Impact Weapon . | . . . . . Slashing Weapon . | . . . . . Piercing Weapon . | . . . . . Special Melee Weapon . | . . . . . Unidentified Prototypes 2 | . . . 2 . Parts Lost 4 | . . 2 . 2 Power 1 | . . 1 . . Propulsion 1 | . . . . 1 Utility . | . . . . . Weapon 2 | . . 1 . 1 Highest Loss Streak 2 | . . 2 . 2 To Critical Strikes . | . . . . . Average Slot Usage (%) 99 | . 100 99 100 96 Engine 13 | . 14 13 14 14 Treads 27 | . 28 28 28 27 Device 2 | . 14 1 . . Storage 14 | . 14 14 14 14 Protection 11 | . . 12 13 14 Energy Gun 14 | . 14 14 14 14 Ballistic Gun 9 | . 14 6 14 1 Launcher 4 | . . 7 . 10 Peak Build Rating 17 | 7 8 13 17 17 Average Rating 12 | 6 7 12 14 16 On Entrance 10 | 6 7 8 13 17 Naked Turns . | . . . . . Heaviest Build 93 | 13 88 93 91 93 Greatest Support 40 | 40 40 40 40 40 Greatest Overweight (x) 8 | . 2 2 2 8 Average Overweight (x) 1 | . . 2 2 2 Largest Inventory Capacity 25 | 8 25 25 25 25 Average Capacity 23 | 8 17 25 25 25 Most Carried 25 | 8 13 25 25 25 Average Carried 21 | 6 9 23 24 24 Final Capacity 25 | 8 25 25 25 25 Final Carried 25 | 8 13 24 25 24 Class Distribution -------------------- 100% | Mutant Dominant Class ---------------- Mutant | -10/Materials Mutant | -10/Mines Mutant | -10/Exiles Mutant | -9/Mines Resources | -11 -10 -10 -10 -9 ----------- Run | Yrd Mat Min Exi Min Matter Collected 485 | 242 53 190 . . Remotely . | . . . . . Salvage Created 444 | 115 214 113 . 2 Parts 28 | 6 14 8 . . Haulers Intercepted . | . . . . . Recyclers Shooed . | . . . . . Parts Field Recycled . | . . . . . Retrieved Matter . | . . . . . Parts Self-Destructed . | . . . . . Prevented . | . . . . . Kills | -11 -10 -10 -10 -9 ------- Run | Yrd Mat Min Exi Min Combat Hostiles Destroyed 12 | . 7 4 . 1 Guns 9 | . 7 2 . . AOE 3 | . . 2 . 1 Classes Destroyed 5 | 2 2 . . 1 Tunneler 2 | 2 . . . . Recycler 1 | 1 . . . . Swarmer 3 | . 3 . . . Grunt 8 | . 4 4 . . Assembled 1 | . . . . 1 Best Kill Streak 3 | 1 3 2 . 1 Combat Bots Only 3 | . 3 2 . 1 Max Kills in Single Turn 1 | 1 1 1 . 1 Gunslinging . | . . . . . Exploded 1 | . . 1 . 1 Melee . | . . . . . Uniques/NPCs Destroyed . | . . . . . Combat | -11 -10 -10 -10 -9 -------- Run | Yrd Mat Min Exi Min Hostile Shots Fired 107 | . 44 37 . 26 Missed 26 | . 10 8 . 8 Damage Taken 1152 | . 359 349 . 444 Core 250 | . 81 43 . 126 Absorbed by Shields . | . . . . . Ignored by Resistances 53 | . . 53 . . Core Remaining (%) 100 | 100 . . . . Volleys Fired 58 | 12 23 22 . 1 Largest 2 | 2 2 2 . 2 Hottest 70 | 60 60 70 . 70 Shots Fired 110 | 24 46 38 . 2 Gun 103 | 24 46 32 . 1 Cannon . | . . . . . Launcher 7 | . . 6 . 1 Special . | . . . . . Kinetic 45 | 12 23 10 . . Thermal 58 | 12 23 22 . 1 Explosive 7 | . . 6 . 1 Electromagnetic . | . . . . . Robot Hit Streak 13 | 2 13 11 . 1 Robot Miss Streak 4 | 4 2 2 . 1 Penetration Max . | . . . . . Secondary Targets 2 | . 2 . . . Max Gunslinging Chain 1 | . 1 . . . Shots Hit Robots 71 | 9 30 31 . 1 Core Hits 30 | 5 13 9 . 3 Critical Kills . | . . . . . Critical Parts Destroyed . | . . . . . Critical Strikes . | . . . . . Melee Attacks . | . . . . . Impact . | . . . . . Slashing . | . . . . . Piercing . | . . . . . Sneak Attacks . | . . . . . Combat Hostiles . | . . . . . Follow-up Attacks . | . . . . . Damage Inflicted 969 | 94 277 487 . 111 Guns 636 | 94 277 253 . 12 Cannons . | . . . . . Explosions 331 | . . 232 . 99 Melee . | . . . . . Ramming 2 | . . 2 . . Kinetic 216 | 51 114 51 . . Thermal 420 | 43 163 202 . 12 Explosive 331 | . . 232 . 99 Electromagnetic . | . . . . . Impact . | . . . . . Slashing . | . . . . . Piercing . | . . . . . Highest Corruption . | . . . . . Average Corruption . | . . . . . Corruption Purged . | . . . . . Corruption Blocked . | . . . . . Overload Shots . | . . . . . Overflow Damage 1 | . . . . 1 Projectiles . | . . . . . Explosions 1 | . . . . 1 Melee . | . . . . . Knockbacks . | . . . . . Impact . | . . . . . Kinetic . | . . . . . Secondary . | . . . . . Self-Inflicted Damage 35 | . . . . 35 Shots 1 | . . . . 1 Rammed 1 | . . 1 . . Targets Rammed 1 | . . 1 . . Kicked . | . . . . . Crushed . | . . . . . Highest Temperature 203 | 40 159 203 . 18 Average Temperature 67 | 16 53 102 . 9 Received Heat Transfer 363 | . 156 207 . . Siege Activations . | . . . . . Robots Corrupted . | . . . . . Combat Hostiles . | . . . . . Parts Fried . | . . . . . Impact Corruptions . | . . . . . Robots Melted . | . . . . . Combat Hostiles . | . . . . . Parts Melted . | . . . . . Heat Transferred 950 | 100 375 450 . 25 Parts Sabotaged . | . . . . . Parts Stolen . | . . . . . Parts Stripped . | . . . . . Power Chain Reactions . | . . . . . Alert | -11 -10 -10 -10 -9 ------- Run | Yrd Mat Min Exi Min Peak Influence 226 | 15 226 92 . 6 Initial 17 | . 9 17 . . Average 26 | 7 93 9 . . Maximum Alert Level 1 | . 1 . . . Low Security (%) 98 | 100 91 100 . 100 Level 1 1 | . 8 . . . Level 2 . | . . . . . Level 3 . | . . . . . Level 4 . | . . . . . Level 5 . | . . . . . High Security . | . . . . . Max Security . | . . . . . Squads Dispatched 2 | . 2 . . . Investigation 2 | . 2 . . . Extermination . | . . . . . Reinforcement . | . . . . . Assault . | . . . . . Garrison . | . . . . . Intercept . | . . . . . Searches Triggered . | . . . . . Construction Impeded . | . . . . . Haulers Reinforced . | . . . . . Active Scanning Responses . | . . . . . Cargo Convoy Interrupts . | . . . . . Stealth | -11 -10 -10 -10 -9 --------- Run | Yrd Mat Min Exi Min Distress Signals 1 | . 1 . . . Communications Jammed . | . . . . . Distress Signals . | . . . . . Times Spotted 20 | . 11 4 . 5 Peak Tracking Total 8 | . 5 2 . 8 Tactical Retreats 1 | . . . . 1 Traps | -11 -10 -10 -10 -9 ------- Run | Yrd Mat Min Exi Min Traps Triggered 2 | . 1 1 . . Indirectly . | . . . . . Trap Hack Attempts . | . . . . . Triggered . | . . . . . Disarmed . | . . . . . Reprogrammed . | . . . . . Reused . | . . . . . Traps Extracted . | . . . . . Installed . | . . . . . Triggered . | . . . . . Machines | -11 -10 -10 -10 -9 ---------- Run | Yrd Mat Min Exi Min Machines Disabled 1 | . . 1 . . Max in Single Turn 1 | . . 1 . . Machines Repaired . | . . . . . Machines Dismantled . | . . . . . Machines Sabotaged . | . . . . . Overloaded Fab Kills . | . . . . . Hacking | -11 -10 -10 -10 -9 --------- Run | Yrd Mat Min Exi Min Machines Accessed 6 | . 4 1 1 . Terminals 3 | . 3 . . . Fabricators . | . . . . . Repair Stations . | . . . . . Recycling Units 1 | . 1 . . . Scanalyzers . | . . . . . Garrison Access . | . . . . . Total Hacks 37 | . 13 1 23 . Successful 29 | . 5 1 23 . Failed 8 | . 8 . . . Catastrophic 4 | . 4 . . . Database Lockouts . | . . . . . Manual 3 | . 2 . 1 . Terminals 10 | . 10 . . . Fabricators . | . . . . . Repair Stations . | . . . . . Recycling Units 3 | . 3 . . . Scanalyzers . | . . . . . Garrison Access . | . . . . . Terminal Hacks 27 | . 3 1 23 . Record 23 | . . . 23 . Open Door 1 | . . 1 . . Locate Traps 1 | . 1 . . . Dispatch Records 1 | . 1 . . . Recall Investigation 1 | . 1 . . . Fabricator Hacks . | . . . . . Repair Station Hacks . | . . . . . Recycling Unit Hacks 2 | . 2 . . . Retrieve Components 2 | . 2 . . . Scanalyzer . | . . . . . Garrison Access Hacks . | . . . . . Unauthorized Hacks . | . . . . . Terminals . | . . . . . Fabricators . | . . . . . Repair Stations . | . . . . . Recycling Units . | . . . . . Scanalyzers . | . . . . . Garrison Access . | . . . . . Data Cores Recovered . | . . . . . Used . | . . . . . Hacking Detections 4 | . 4 . . . Full Trace Events 3 | . 3 . . . Feedback Events . | . . . . . Feedback Blocked . | . . . . . Robot Schematics Acquired . | . . . . . Robots Built . | . . . . . Authchips . | . . . . . Time . | . . . . . Total Robot Build Rating . | . . . . . Part Schematics Acquired . | . . . . . Parts Built . | . . . . . Authchips . | . . . . . Time . | . . . . . Total Part Build Rating . | . . . . . Parts Repaired . | . . . . . Time . | . . . . . Parts Recycled . | . . . . . Recycled Matter . | . . . . . Retrieved Matter . | . . . . . Retrieved Components . | . . . . . Parts Scanalyzed . | . . . . . Part Schematics Acquired . | . . . . . Parts Damaged . | . . . . . Bothacking | -11 -10 -10 -10 -9 ------------ Run | Yrd Mat Min Exi Min Used RIF Installer . | . . . . . Robots Hacked . | . . . . . Non-combat . | . . . . . Combat . | . . . . . Robot Hacks Applied . | . . . . . Relay Couplers Released . | . . . . . Fabnet Peak Effective % . | . . . . . Robots Rewired . | . . . . . Allies Hacked . | . . . . . Hacks Repelled . | . . . . . Allies | -11 -10 -10 -10 -9 -------- Run | Yrd Mat Min Exi Min Total Allies . | . . . . . Largest Group . | . . . . . Highest-Rated Group . | . . . . . Highest-Rated Ally . | . . . . . Total Orders . | . . . . . Ally Attacks . | . . . . . Total Damage . | . . . . . Kills . | . . . . . Allies Corrupted . | . . . . . Allies Melted . | . . . . . Intel | -11 -10 -10 -10 -9 ------- Run | Yrd Mat Min Exi Min Robot Analysis Total . | . . . . . Derelict Logs Recovered 3 | . . 3 . . Drone Launches . | . . . . . Drone Recoveries . | . . . . . Exploration | -11 -10 -10 -10 -9 ------------- Run | Yrd Mat Min Exi Min Turns Passed 3430 | 73 553 1924 744 136 Spaces Moved 1080 | 28 205 576 229 42 Core . | . . . . . Treads 1050 | 1 205 576 229 39 Legs 27 | 27 . . . . Wheels 3 | . . . . 3 Hover . | . . . . . Flight . | . . . . . Fastest Speed 120 | 120 160 320 320 200 Average Speed 297 | 121 231 320 320 311 Slowest Speed 320 | 160 320 320 320 320 Overloaded Moves . | . . . . . Propulsion Burnouts . | . . . . . Robots Hopped . | . . . . . Cave-ins Triggered . | . . . . . Exploration Rate (%) 43 | 3 45 98 60 11 Regions Visited 4 Branch Regions 3 Pre-discovered Areas 2 | . . . 1 1 Known Exits Taken 1 | . . 1 . . Unknown Exits Taken 3 | 1 1 . 1 . Scrap Searched 1 | . . 1 . . Spaces Dug . | . . . . . Terrain Destroyed 32 | . . 23 . 9 Melee . | . . . . . Projectile . | . . . . . AOE 32 | . . 23 . 9 Terrain Rammed . | . . . . . Walls Destroyed . | . . . . . Machines Disabled . | . . . . . Actions | -11 -10 -10 -10 -9 --------- Run | Yrd Mat Min Exi Min Total 1199 | 44 246 620 244 45 Wait 8 | . 8 . . . Move 1076 | 27 204 575 228 42 Hop . | . . . . . Pick Up 22 | 1 6 13 2 . Fast Attach 5 | 1 . 1 3 . Attach 3 | . . 2 . 1 Detach 1 | . . 1 . . Swap 12 | 3 2 4 2 1 Drop 13 | . 3 1 9 . Fire 58 | 12 23 22 . 1 Melee . | . . . . . Ram . | . . . . . Kick . | . . . . . Crush 1 | . . 1 . . Escape Stasis . | . . . . . Rewire . | . . . . . Trap . | . . . . . Miscellaneous . | . . . . . Route ------- -11/Scrapyard -10/Materials (discovered 3 exits: [*Mat x2] / *Min) -10/Mines (discovered 4 exits: [*Mat x2] / *Exi / Sub) -10/Exiles -9/Mines (discovered 1 exit: [*Mat]) History --------- Turn | Location | Event 1 | -11/Scrapyard | Discovered new exit (range 3) 74 | -11/Scrapyard | Entered Materials 282 | -10/Materials | Discovered new exit (range 5) 288 | -10/Materials | Discovered new exit (range 15) 331 | -10/Materials | Build established: Mutant 389 | -10/Materials | Discovered new exit (range 14) 627 | -10/Materials | Entered Mines 715 | -10/Mines | Met a Derelict who couldn't figure out how to use a Trap Extractor 855 | -10/Mines | Identified exit to Subcaves 1174 | -10/Mines | Identified exit to Exiles 1243 | -10/Mines | Learned 2 Materials zone layouts 1422 | -10/Mines | Discovered new exit (range 15) 2238 | -10/Mines | Deemed a non-threat by the Exiles lab entrance 2385 | -10/Mines | Discovered new exit (range 11) 2551 | -10/Mines | Entered Exiles 2664 | -10/Exiles | Met 8R-AWN 2719 | -10/Exiles | Met EX-HEX 2812 | -10/Exiles | Met EX-BIN 2863 | -10/Exiles | Aligned with FarCom system 2866 | -10/Exiles | Given EX-Vault access code 2940 | -10/Exiles | Opened EX-Vault 2959 | -10/Exiles | Found Prototype Processor 2959 | -10/Exiles | Identified 0b10 Alert Chip 2979 | -10/Exiles | Found Prototype Device 2979 | -10/Exiles | Identified Skeleton Box 2993 | -10/Exiles | Found Prototype Device 3068 | -10/Exiles | Warned to stay clear of 0b10 Research branches 3170 | -10/Exiles | Learned location of Zion (-6) 3269 | -10/Exiles | Discovered new exit (range 10) 3295 | -10/Exiles | Left Exiles lab with Army-in-a-Box 3295 | -10/Exiles | Entered Mines 3296 | -9/Mines | Learned location of Storage (-7) 3316 | -9/Mines | Discovered new exit (range 7) 3384 | -9/Mines | Assembled infested the area 3409 | -9/Mines | Core integrity fell below 50% 3431 | -9/Mines | Core integrity fell below 20% 3431 | -9/Mines | Destroyed by as-23269 with Assembled Blade Last Messages --------------- 03296_ A derelict emerges from the shadows: "Are any of them following you? I'm here trying to lose some heat after our second raid on Storage failed. Whatever you do stay away from that place, they've tightened security following our previous successful raids." World map updated: -7/Storage. 03298_ S1-HJQ(g): "We scattered so the Unaware couldn't effectively use their advantage in numbers, and I suggest you do the same." 03298_ S1-HJQ(g) slips back into the shadows. 03316_ EXIT=FOUND 03317_ K-01 Serf collects debris. 03384_ ALERT: Infestation in the mines, dispatching Demolisher response squad. 03406_ as-06029 destroyed. 03406_ Grenade Launcher destroyed. 03406_ Destroyed Grenade Launcher. 03413_ K-01 Serf collects debris. 03425_ Lgt. Treads destroyed. 03426_ K-01 Serf collects debris. 03428_ as-23269 sneak attacks. 03428_ K-01 Serf destroyed. Map ----- +----------------------------------------------------+ | | | | | | | | | | | | | | | | | | | | | | | | | | | ?????????????????????????????????????????????????? | | ?????????????????????????????????????????????????? | | ???????????????????????#######???????????????????? | | ??????????????????????## ##?##???????????????? | | ??????????????????????# ## #########???????? | | ??????????????????????# ?? | | ??????????????????????# % #######????????? | | ?????????????????????## #??????????????? | | ????????????????####?# # ##??????????????? | | ???????????????## ### a ######???????????????? | | ??????????????## ## ! #????????????????????? | | ??????????????# ## aa=##?????????????d??????? | | ??????????????# ### @##?????????????????????? | | ??????????????## ##?# ######## ????????? | | ???????????????#### #?## ????????? | | ??????????????????# #?# #????????? | | ??????????????????# ### ###### #?????????? | | ??????????????????# #???? #?????????? | | ??????????????????# #?????????????????? | | ??????????????????### #### #?????????????????? | | ????????????ss??????# #??? #?????????????????? | | ???????????s????????# < #?????????????????? | | ???????????s????????# #### #?????????????????? | | ????????????????????# #????? #????????????????? | | ????????????????????## ##???????????????????????? | | ?????????????????????####????????????????????????? | | ?????????????????????????????????????????????????? | | ?????????????????????????????????????????????????? | | ?????????????????????????????????????????????????? | | ?????????????????????????????????????????????????? | | ?????????????????????????????????????????????????? | | ?????????????????????????????????????????????????? | | ?????????????????????????????????????????????????? | | ?????????????????????????????????????????????????? | | ?????????????????????????????????????????????????? | | ?????????????????????????????????????????????????? | | ?????????????????????????????????????????????????? | +----------------------------------------------------+ Best States ------------- Heat Dissipation 25 Energy Generation 10 Energy Capacity 250 Matter Stores 300 Matter Capacity 300 Sight Range 16 Terrain Scan Density 10 Armor Coverage 150 Resistance: TH 10 Evasion (%) 45 Recoil Reduction 2 Item Schematics ----------------- None Robot Schematics ------------------ None Fabricated ------------ Nothing Alien Tech Used ----------------- None Achievements -------------- None Challenges ------------ None Game ------ Seed FlyingShadingTorch Manual? 0 Play Time 00:14:07 Cumulative 49.0 hours Start 2024.09.11 @ 11:14:06 End 2024.09.11 @ 11:27:21 Sessions 1 Manual Loads 0 Difficulty Rogue Special Mode None Game No. 71 Rogue 71 Adventurer 0 Explorer 0 Win Type - Total 0 Types 0/0/0/0/0/0/0/0/0 Lore% 12 Gallery% 44 Achievement% 35 Wizard Run 0 Options --------- Layout 0 ASCII 0 Keyboard 0 Movement Numpad Keybinds 1 Fullscreen 1 Font 18/TerminusBold Map View 76x50 Zoom Use 0% Tactical HUD 1 Map Filters NONE Filters NONE Steam 1 RUN: 37acd2f1-8feb-42bf-aa78-67241f802d04